bitfinex-derivatives/quotes_ETHF0:USTF0_20240920
["timestamp","ask_amount","ask_price","bid_price","bid_amount"]
[1726855578730,0.3955,2533.2,2533.1,0.39475]
[1726855578731,2.44198238,2533.2,2533.1,0.39475]
[1726855579129,0.79023,2533.2,2533.1,0.39475]
[1726855579330,2.83671238,2533.2,2533.1,0.39475]
[1726855579530,0.39475,2533.1,2533.0,3.2078]
[1726855579830,2.83617049,2533.2,2533.1,0.39475]
[1726855580731,0.39475,2533.1,2533.0,3.60255]
[1726855581735,2.83618049,2533.2,2533.1,0.39475]
[1726855581935,0.39475,2533.1,2533.0,3.60255]
[1726855582136,2.83618049,2533.2,2533.1,0.39475]
[1726855583530,2.83618049,2533.2,2533.1,0.71055]
[1726855583936,2.83618049,2533.2,2533.1,0.3158]
[1726855584132,2.83618049,2533.2,2533.1,0.71055]
[1726855584838,2.44143049,2533.2,2533.1,0.71055]
[1726855585031,0.79023,2533.2,2533.1,1.09465]
[1726855585231,0.79023,2533.2,2533.1,1.49475]
[1726855585938,0.79023,2533.2,2533.1,0.71055]
[1726855586143,2.83616049,2533.2,2533.1,0.71055]
[1726855586846,2.83616049,2533.2,2533.1,0.3158]
[1726855587134,1.77707,2533.2,2533.1,0.3158]
[1726855587335,5.72507,2533.2,2533.1,0.3158]
[1726855588630,8.28672584,2533.2,2533.1,0.3158]
[1726855588831,11.32278662,2533.2,2533.1,0.3158]
[1726855589431,8.78452508,2533.2,2533.1,0.3158]
[1726855589830,11.32190716,2533.2,2533.1,0.3158]
[1726855590036,8.78452508,2533.2,2533.1,0.3158]
[1726855590442,8.78452508,2533.2,2533.1,0.6316]
[1726855590443,11.32185758,2533.2,2533.1,0.6316]
[1726855590737,8.78452508,2533.2,2533.1,0.6316]
[1726855590946,5.72507,2533.2,2533.1,0.6316]
[1726855591150,11.32190778,2533.2,2533.1,0.6316]
[1726855591833,11.32175888,2533.2,2533.1,0.6316]
[1726855593545,7.37375888,2533.2,2533.1,0.6316]
[1726855594240,3.45495508,2533.2,2533.1,1.02635]
[1726855594432,3.05945508,2533.5,2533.4,1.38146]
[1726855594638,3.45411508,2533.7,2533.6,0.39467]
[1726855594837,0.39466,2533.7,2533.6,0.39467]
[1726855595047,3.05945508,2533.8,2533.7,0.39466]
[1726855595342,3.05945508,2533.9,2533.8,1.38125]
[1726855595537,0.3854,2534.3,2534.0,0.98653]
[1726855595734,2.55831974,2534.4,2534.3,0.39456]
[1726855596051,2.95285974,2534.5,2534.4,0.39455]
[1726855596342,0.39455,2534.4,2534.2,3.60238]
[1726855596538,2.04577934,2534.4,2534.3,0.39455]
[1726855596843,0.39456,2534.3,2534.2,3.2078]
[1726855597043,5.69847,2534.3,2534.2,3.2078]
[1726855597245,8.25678974,2534.3,2534.2,3.5234]
[1726855597635,5.69847,2534.3,2534.2,3.5234]
[1726855597841,4.71206,2534.3,2534.2,3.5234]
[1726855598040,0.76646,2534.3,2534.2,3.5234]
[1726855598240,5.69847,2534.3,2534.2,3.5234]
[1726855599233,0.39462,2533.9,2533.8,3.2078]
[1726855599438,1.92755165,2533.9,2533.8,3.2078]
[1726855599639,1.53293165,2533.9,2533.8,3.60244]
[1726855599940,1.92755165,2533.9,2533.8,3.60244]
[1726855600140,1.53293165,2533.9,2533.8,3.60244]
[1726855600438,1.92755165,2533.9,2533.8,3.60244]
[1726855600842,1.92755165,2533.9,2533.8,3.2078]
[1726855601149,1.92755165,2533.9,2533.8,3.5235]
[1726855601344,1.53293165,2533.9,2533.8,3.91814]
[1726855601546,1.92755165,2533.9,2533.8,3.91814]
[1726855602039,1.53293165,2534.0,2533.8,3.91814]
[1726855602252,1.02172009,2533.9,2533.8,3.91814]
[1726855602548,1.92755165,2534.0,2533.8,3.91814]
[1726855602839,2.55488608,2534.0,2533.9,0.39462]
[1726855603240,2.55488608,2534.1,2534.0,0.39461]
[1726855603549,2.94944608,2534.3,2534.2,0.39458]
[1726855603844,0.39456,2534.3,2534.2,3.60238]
[1726855604348,2.4372155,2534.3,2534.2,3.60238]
[1726855604639,0.39456,2534.3,2534.2,3.60238]
[1726855605144,0.39459,2534.1,2534.0,3.2078]
[1726855605340,2.04259154,2534.1,2534.0,3.6024]
[1726855606242,2.43661897,2534.2,2534.0,3.2078]
[1726855606547,2.04202897,2534.1,2534.0,3.6024]
[1726855606751,2.04202897,2534.2,2534.1,0.39459]
[1726855607138,2.43583679,2534.3,2534.2,0.39458]
[1726855607338,0.39458,2534.2,2534.1,0.39458]
[1726855607637,2.04113208,2534.2,2534.1,0.39458]
[1726855608150,2.04113208,2534.2,2534.1,4.34098]
[1726855608446,2.04113208,2534.3,2534.2,0.39458]
[1726855608853,2.43568208,2534.4,2534.3,0.39456]
[1726855609047,2.04113208,2534.4,2534.3,3.60236]
[1726855609347,2.43568208,2534.4,2534.3,3.2078]
[1726855610742,2.94943608,2534.4,2534.3,3.2078]
[1726855610940,0.39462,2534.0,2533.9,3.2078]
[1726855611147,2.4352713,2534.0,2533.9,3.2078]
[1726855611348,2.4352713,2534.0,2533.9,3.5235]
[1726855611349,2.94543663,2534.0,2533.9,3.5235]
[1726855611645,0.78301,2534.0,2533.9,3.5235]
[1726855612746,4.32036663,2534.0,2533.9,3.8392]
[1726855612942,2.55704,2534.0,2533.9,3.8392]
[1726855613746,5.10714316,2534.0,2533.9,3.8392]
[1726855614048,3.72501316,2534.0,2533.9,3.8392]
[1726855614356,1.17491,2534.0,2533.9,3.8392]
[1726855614550,3.72501316,2534.0,2533.9,3.8392]
[1726855617555,2.93850316,2534.0,2533.9,4.23382]
[1726855617753,2.94471316,2534.1,2534.0,0.39461]
[1726855618054,0.39461,2534.1,2534.0,0.39461]
[1726855619153,0.39461,2534.1,2533.9,3.8392]
[1726855619154,0.39461,2534.0,2533.9,3.8392]
[1726855619354,0.39461,2534.0,2533.9,4.23382]
[1726855619853,0.39461,2534.0,2533.9,3.8392]
[1726855620245,1.41460458,2534.0,2533.9,3.8392]
[1726855620956,2.40113458,2534.0,2533.9,3.8392]
[1726855621547,7.84406187,2534.0,2533.9,0.6314]
[1726855621753,6.85753187,2534.0,2533.9,0.6314]
[1726855622059,2.91113187,2534.0,2533.9,0.9471]
[1726855622451,1.92460187,2534.0,2533.9,0.9471]
[1726855622656,1.41620646,2534.0,2533.9,0.9471]
[1726855623051,0.39461,2534.0,2533.9,0.9471]
[1726855623259,1.92460187,2534.0,2533.9,0.9471]
[1726855623459,0.39461,2534.0,2533.9,1.34172]
[1726855623653,1.92460187,2534.0,2533.9,0.9471]
[1726855623852,1.416535,2534.0,2533.9,0.9471]
[1726855624155,2.51649187,2534.1,2533.9,1.34172]
[1726855624156,1.52999187,2534.1,2533.9,1.34172]
[1726855624463,1.92810122,2534.1,2534.0,0.39461]
[1726855624665,1.92810122,2534.1,2534.0,0.78901]
[1726855624666,1.53350122,2534.1,2534.0,0.78901]
[1726855624854,1.02247344,2534.2,2534.1,0.98649]
[1726855625056,1.02247344,2534.5,2534.3,0.98641]
[1726855625355,1.53350122,2534.6,2534.5,0.39453]
[1726855625356,1.02247344,2534.6,2534.5,0.39453]
[1726855625555,1.41698344,2534.6,2534.5,0.39453]
[1726855625767,1.4170671,2534.6,2534.5,0.78063]
[1726855626062,1.37621,2534.9,2534.5,0.39453]
[1726855626063,7.50566508,2534.9,2534.5,0.39453]
[1726855626252,2.9505461,2534.6,2534.5,0.39453]
[1726855627053,2.5560261,2534.6,2534.5,0.39453]
[1726855627249,2.9505361,2534.7,2534.6,0.39451]
[1726855627451,0.39451,2534.6,2534.5,0.4042]
[1726855627665,2.95162936,2534.6,2534.5,0.4042]
[1726855627958,0.39451,2534.6,2534.5,0.4042]
[1726855628458,0.39451,2534.6,2534.5,0.79873]
[1726855629069,0.39451,2534.6,2534.5,4.00653]
[1726855629763,2.95162936,2534.6,2534.5,4.00653]
[1726855629955,2.95162936,2534.6,2534.5,3.2078]
[1726855630362,3.93791936,2534.6,2534.5,3.2078]
[1726855630565,6.68409,2534.6,2534.5,3.2078]
[1726855630762,5.6978,2534.6,2534.5,3.2078]
[1726855631260,5.6978,2534.6,2534.5,3.5234]
[1726855631261,6.68409,2534.6,2534.5,3.5234]
[1726855631664,9.74354508,2534.6,2534.5,3.5234]
[1726855631966,7.07949,2534.6,2534.5,3.5234]
[1726855632974,9.63686773,2534.6,2534.5,3.5234]
[1726855633172,9.63728228,2534.6,2534.5,3.5234]
[1726855633367,13.07949,2534.6,2534.5,3.5234]
[1726855634870,13.07949,2534.6,2534.5,0.3156]
[1726855635172,13.07949,2534.6,2534.0,7.3388]
[1726855635173,0.39459,2534.1,2534.0,7.7334]
[1726855635371,0.39459,2534.1,2534.0,3.6024]
[1726855636063,3.42834751,2534.1,2534.0,3.2078]
[1726855636266,1.77968,2534.1,2534.0,3.2078]
[1726855636466,4.33876439,2534.1,2534.0,3.2078]
[1726855637183,1.77968,2534.1,2534.0,3.2078]
[1726855637675,4.34051075,2534.1,2534.0,3.2078]
[1726855638178,1.77968,2534.1,2534.0,3.2078]
[1726855639778,0.79319,2534.1,2534.0,3.2078]
[1726855639977,3.94745456,2534.1,2534.0,3.2078]
[1726855640179,1.38108,2534.1,2534.0,3.2078]
[1726855641971,0.77869,2534.2,2534.1,0.39459]
[1726855642173,2.96454669,2534.2,2534.1,0.39458]
[1726855642371,2.56996669,2534.2,2534.1,0.78068]
[1726855642571,2.56996669,2534.2,2534.1,1.76717]
[1726855642779,2.05531076,2534.2,2534.1,7.4025]
[1726855642981,2.56996669,2534.3,2534.2,0.39458]
[1726855643181,0.39455,2534.4,2534.3,0.39456]
[1726855643376,2.9633647,2534.4,2534.3,3.60236]
[1726855643680,2.5688147,2534.4,2534.3,3.60236]
[1726855643983,2.5688147,2534.4,2534.3,10.61796]
[1726855644185,2.05511233,2534.4,2534.3,15.31081]
[1726855644381,2.05520018,2534.5,2534.4,0.39455]
[1726855644570,2.05520018,2534.6,2534.5,0.39453]
[1726855644776,2.5688147,2534.7,2534.6,0.39451]
[1726855644777,2.05520018,2534.7,2534.6,0.39451]
[1726855645083,2.05520018,2534.7,2534.6,7.54791]
[1726855645482,2.05520018,2534.7,2534.6,7.86351]
[1726855645783,2.05520018,2534.7,2534.6,8.17911]
[1726855647980,3.08175968,2534.7,2534.6,7.7846]
[1726855648179,3.08175968,2534.8,2534.6,3.839]
[1726855648376,3.08175968,2534.7,2534.6,4.23351]
[1726855648580,5.56396835,2534.7,2534.6,4.23351]
[1726855648778,5.56393872,2534.7,2534.6,4.23351]
[1726855649379,5.56414495,2534.7,2534.6,4.23351]
[1726855649585,3.08158837,2534.7,2534.6,4.23351]
[1726855650079,3.08158837,2534.7,2534.6,4.54911]
[1726855650080,5.56407289,2534.7,2534.6,4.54911]
[1726855650281,3.08158837,2534.7,2534.6,4.54911]
[1726855651083,3.08158837,2534.8,2534.7,0.3945]
[1726855651284,5.56350842,2534.8,2534.7,0.3945]
[1726855651779,2.48192005,2534.8,2534.7,0.3945]
[1726855651978,2.48192005,2534.8,2534.7,0.7764]
[1726855652179,3.08046084,2534.8,2534.7,0.7764]
[1726855652379,5.56238089,2534.8,2534.7,0.7764]
[1726855652980,2.48192005,2534.8,2534.7,0.7764]
[1726855653491,2.48192005,2534.8,2534.6,4.1546]
[1726855653492,0.3945,2534.7,2534.6,0.9468]
[1726855653877,6.44819279,2534.7,2534.6,4.1546]
[1726855654078,6.44819279,2534.7,2534.6,0.9468]
[1726855654079,7.43445279,2534.7,2534.6,0.9468]
[1726855654286,3.86268005,2534.7,2534.6,0.9468]
[1726855654483,3.86268005,2534.7,2534.6,4.1546]
[1726855654876,3.86268005,2534.7,2534.6,4.54911]
[1726855654877,2.48192005,2534.7,2534.6,4.54911]
[1726855655082,2.56796343,2534.8,2534.7,0.3945]
[1726855655290,0.3945,2534.7,2534.6,4.1546]
[1726855655491,2.96246343,2534.7,2534.6,4.54911]
[1726855655688,0.3945,2534.7,2534.6,4.54911]
[1726855655881,2.96246343,2534.7,2534.6,4.54911]
[1726855656282,0.3945,2534.7,2534.6,4.54911]
[1726855656681,2.96245343,2534.8,2534.7,0.3945]
[1726855656893,0.3945,2534.7,2534.6,4.5491]
[1726855658989,2.44895039,2534.7,2534.6,4.5491]
[1726855659190,0.3945,2534.7,2534.6,4.5491]
[1726855659994,2.96246343,2534.7,2534.6,0.9468]
[1726855660191,6.31262,2534.7,2534.6,0.9468]
[1726855661386,9.39417715,2534.7,2534.6,0.9468]
[1726855661894,11.8770463,2534.7,2534.6,0.9468]
[1726855662401,18.5800263,2534.7,2534.0,4.131]
[1726855662693,10.69992289,2534.1,2532.7,4.37853572]
[1726855662895,2.56749795,2533.2,2533.0,3.2078]
[1726855663086,3.08099754,2533.1,2533.0,3.2078]
[1726855663287,3.47573754,2533.2,2533.0,3.2078]
[1726855663498,3.08099754,2533.2,2533.0,3.2078]
[1726855664089,0.39472,2533.3,2533.0,3.2078]
[1726855664090,3.47571754,2533.3,2533.0,3.2078]
[1726855664289,3.47571754,2533.3,2533.0,3.5236]
[1726855664792,3.47572754,2533.3,2533.0,3.5236]
[1726855665199,3.08099754,2533.3,2533.0,3.5236]
[1726855665500,3.08099754,2533.5,2533.2,3.07]
[1726855665690,3.08099754,2533.6,2533.3,3.2078]
[1726855665898,3.2078,2533.7,2533.3,3.2078]
[1726855665899,3.08099754,2533.7,2533.3,3.2078]
[1726855666196,2.56235731,2533.4,2533.3,3.2078]
[1726855667093,2.56235731,2533.5,2533.3,10.225]
[1726855667294,2.04973103,2533.4,2533.3,6.2778]
[1726855667798,2.04973103,2533.4,2533.3,10.225]
[1726855668894,2.56235731,2533.5,2533.3,3.2078]
[1726855670199,1.02424768,2533.6,2533.3,3.2078]
[1726855670891,1.41891768,2533.6,2533.3,3.2078]
[1726855671290,1.02424768,2533.5,2533.3,3.2078]
[1726855672097,1.02424768,2533.6,2533.3,3.2078]
[1726855672396,1.02424768,2533.6,2533.4,0.3157]
[1726855672788,1.41890768,2533.7,2533.4,0.3157]
[1726855672985,1.02424768,2533.7,2533.6,3.2078]
[1726855673194,1.41890768,2533.7,2533.6,3.2078]
[1726855673395,1.93103153,2533.7,2533.6,3.2078]
[1726855673695,1.93103153,2533.7,2533.4,0.3157]
[1726855673899,1.02396369,2533.6,2533.4,0.3157]
[1726855674202,1.93103153,2533.7,2533.5,0.3157]
[1726855674203,1.41862369,2533.7,2533.5,0.3157]
[1726855674698,1.41862369,2533.7,2533.6,3.2078]
[1726855675288,1.02396369,2533.8,2533.6,10.225]
[1726855675495,1.02396369,2534.1,2533.7,3.9464]
[1726855675690,1.02396369,2534.2,2534.1,0.39459]
[1726855675893,1.53637153,2534.3,2534.1,0.39459]
[1726855675894,1.02396369,2534.3,2534.1,4.097]
[1726855676089,1.02396369,2534.4,2534.2,3.46457]
[1726855676295,1.02396369,2534.4,2534.3,3.2078]
[1726855676591,1.41851369,2534.4,2534.3,3.2078]
[1726855676901,1.41876926,2534.4,2534.3,3.2078]
[1726855677110,15.06409537,2534.4,2534.0,3.2078]
[1726855677398,1.4187524,2534.1,2534.0,3.2078]
[1726855677807,1.7909524,2534.1,2534.0,3.2078]
[1726855678195,3.32914731,2534.1,2534.0,3.2078]
[1726855678591,0.3722,2534.1,2534.0,3.2078]
[1726855678792,2.94325731,2534.2,2534.0,3.2078]
[1726855679001,2.56235731,2534.2,2534.0,6.2778]
[1726855679198,2.95693731,2534.2,2534.0,6.2778]
[1726855679400,2.04836313,2534.1,2534.0,6.6724]
[1726855680605,2.04836313,2534.1,2534.0,10.6188]
[1726855680800,2.04836313,2534.2,2534.0,10.2242]
[1726855681001,2.04836313,2534.2,2534.0,6.6724]
[1726855681199,1.53636869,2534.1,2534.0,6.6724]
[1726855681394,2.04836313,2534.2,2534.0,6.6724]
[1726855681694,1.5364608,2534.1,2534.0,6.6724]
[1726855681898,2.04836313,2534.2,2534.0,6.6724]
[1726855682106,1.53563999,2534.1,2534.0,6.6724]
[1726855682405,2.04836313,2534.2,2534.0,6.6724]
[1726855682899,2.04836313,2534.2,2534.0,6.9881]
[1726855683101,2.44294313,2534.2,2534.0,6.5935]
[1726855683300,2.93455731,2534.4,2534.0,6.5935]
[1726855683301,2.04836313,2534.1,2534.0,6.5935]
[1726855683502,2.04836313,2534.1,2534.0,6.98811]
[1726855683702,2.04836313,2534.2,2534.0,6.98811]
[1726855684703,2.44294313,2534.2,2534.0,6.98811]
[1726855684903,2.04836313,2534.1,2534.0,6.98811]
[1726855685097,0.39459,2534.1,2534.0,3.5235]
[1726855685303,1.41837228,2534.1,2534.0,3.5235]
[1726855686307,5.36477228,2534.1,2534.0,3.5235]
[1726855687207,6.35126228,2534.1,2534.0,3.5235]
[1726855687813,5.36477228,2534.1,2534.0,3.5235]
[1726855688014,2.40486228,2534.1,2534.0,3.5235]
[1726855689013,0.39467,2533.6,2533.5,4.4467]
[1726855689311,0.39467,2533.6,2533.5,0.6314]
[1726855689615,4.34187,2533.6,2533.5,0.6314]
[1726855689811,0.39467,2533.6,2533.5,0.6314]
[1726855690008,1.41752808,2533.6,2533.5,0.6314]
[1726855690209,0.39467,2533.6,2533.5,0.6314]
[1726855691011,0.39467,2533.6,2533.5,0.9471]
[1726855691315,1.41752808,2533.6,2533.5,0.9471]
[1726855691512,0.39467,2533.6,2533.5,0.9471]
[1726855692116,1.02285808,2533.6,2533.5,0.9471]
[1726855692326,0.39467,2533.6,2533.5,0.9471]
[1726855692729,1.41752808,2533.6,2533.5,0.9471]
[1726855692921,1.02285808,2533.7,2533.5,0.9471]
[1726855693132,1.02285808,2533.7,2533.5,4.0171]
[1726855693321,1.02285808,2533.9,2533.7,0.39466]
[1726855693520,1.02285808,2533.9,2533.8,0.3822]
[1726855693826,1.53428712,2533.9,2533.8,0.7873]
[1726855694022,1.41774733,2533.9,2533.8,0.7873]
[1726855695129,1.02312733,2533.9,2533.5,4.41177]
[1726855695331,0.39467,2533.6,2533.5,0.9471]
[1726855695526,1.41779733,2533.6,2533.5,0.9471]
[1726855696337,1.41779733,2533.6,2532.4,2.21636318]
[1726855696338,7.155,2533.6,2532.6,4.131]
[1726855696628,1.0233194,2533.5,2532.9,0.3997]
[1726855696830,0.91837911,2534.1,2533.4,6.2778]
[1726855697024,3.34735731,2534.4,2534.1,0.39459]
[1726855697025,0.1685,2534.2,2534.1,0.39459]
[1726855697325,0.383,2535.1,2534.2,0.3949]
[1726855697326,2.04663881,2535.1,2534.2,0.3949]
[1726855697529,0.3986,2535.3,2535.0,3.07]
[1726855697723,0.3986,2535.3,2535.0,4.097]
[1726855697921,0.39442,2535.2,2535.0,4.097]
[1726855698131,2.83964881,2535.3,2535.0,4.6504]
[1726855698433,0.3986,2535.3,2535.0,0.8689]
[1726855698731,2.44107881,2535.1,2535.0,0.8689]
[1726855698918,2.44107881,2535.1,2533.8,3.2078]
[1726855698919,0.98614,2535.0,2534.0,4.096]
[1726855699122,3.2078,2534.5,2534.0,4.096]
[1726855699423,3.2078,2534.5,2533.8,0.3941]
[1726855699424,0.39458,2534.2,2533.8,0.3941]
[1726855699633,0.7852,2534.4,2533.8,3.4641]
[1726855699928,0.7852,2534.4,2533.8,0.3941]
[1726855700121,0.7852,2534.4,2533.0,9.87]
[1726855700122,0.39464,2533.9,2533.3,3.2078]
[1726855700324,2.04792666,2533.8,2533.2,4.8747]
[1726855700522,2.04792666,2533.8,2533.3,3.5783]
[1726855701428,2.04792666,2533.7,2533.3,3.5783]
[1726855701835,2.04792666,2533.8,2533.3,3.5783]
[1726855703123,2.04792666,2533.7,2533.3,0.3705]
[1726855703323,2.04792666,2533.7,2533.2,0.5404]
[1726855703324,2.44261666,2533.5,2533.2,0.5404]
[1726855703527,2.04792666,2533.4,2533.2,0.1463]
[1726855703726,0.39472,2533.3,2533.2,0.1463]
[1726855703927,4.73702,2533.3,2533.2,0.1463]
[1726855706825,10.73702,2533.3,2533.2,0.1463]
[1726855709321,11.72382,2533.3,2533.2,0.1463]
[1726855711337,0.39481,2532.8,2532.4,11.92665]
[1726855711533,0.39481,2532.7,2532.4,7.79565]
[1726855711732,0.3948,2532.8,2532.4,7.79565]
[1726855711928,0.39481,2532.8,2532.4,7.79565]
[1726855712230,0.39481,2532.8,2532.5,0.39484]
[1726855712630,0.39482,2532.7,2532.4,3.60265]
[1726855713829,0.3948,2532.8,2532.5,0.39484]
[1726855714027,0.39481,2532.7,2532.5,0.39484]
[1726855714442,0.3948,2532.8,2532.5,0.39483]
[1726855714831,0.39481,2532.7,2532.6,0.3943]
[1726855715041,0.3948,2532.8,2532.6,0.3943]
[1726855715241,0.3948,2532.8,2532.7,0.4088]
[1726855717541,2.04945049,2533.3,2532.7,17.3546]
[1726855717734,2.04945049,2533.8,2533.2,3.79]
[1726855718039,0.98658,2533.9,2533.4,3.2078]
[1726855718243,0.98661,2533.8,2533.4,3.2078]
[1726855718442,0.3947,2533.4,2533.3,1.1908]
[1726855718749,0.3947,2533.4,2533.3,0.8085]
[1726855719545,0.3947,2533.4,2533.3,1.20322]
[1726855719739,0.3947,2533.4,2533.3,0.8085]
[1726855720135,0.3947,2533.4,2533.3,0.4008]
[1726855720343,0.7863,2533.7,2533.3,0.79551]
[1726855720344,1.77296,2533.7,2533.3,0.79551]
[1726855720842,5.25725049,2533.9,2533.3,0.4008]
[1726855721142,5.25725049,2533.9,2533.4,3.60249]
[1726855721143,0.39467,2533.6,2533.4,3.60249]
[1726855721347,0.98662,2533.8,2533.5,0.39468]
[1726855721551,0.39466,2533.7,2533.5,0.39468]
[1726855721847,4.19439,2533.9,2533.5,0.39468]
[1726855722044,0.39467,2533.7,2533.5,0.39468]
[1726855722940,0.39467,2533.6,2533.4,3.60249]
[1726855723137,0.98661,2533.8,2533.4,3.2078]
[1726855723350,0.39469,2533.5,2533.4,3.2078]
[1726855723740,0.39469,2533.5,2533.4,3.6025]
[1726855723937,0.39469,2533.5,2533.4,3.2078]
[1726855724344,0.3947,2533.4,2533.3,0.4008]
[1726855724550,5.32866,2533.4,2533.3,0.4008]
[1726855724741,4.3419,2533.4,2533.3,0.4008]
[1726855724936,0.3947,2533.4,2533.3,0.4008]
[1726855725142,4.3419,2533.4,2533.3,0.4008]
[1726855725441,4.93396,2533.4,2533.0,0.39475]
[1726855725651,0.39474,2533.2,2533.1,0.39475]
[1726855725840,0.39475,2533.1,2533.0,0.79595]
[1726855726046,0.39474,2533.2,2533.0,0.79595]
[1726855726646,0.39475,2533.2,2533.0,0.79595]
[1726855727240,0.39475,2533.2,2533.1,0.39475]
[1726855727440,0.39474,2533.2,2533.0,0.4012]
[1726855727641,0.98673,2533.5,2533.1,0.39474]
[1726855727840,0.39474,2533.2,2533.1,0.39474]
[1726855728649,0.98677,2533.4,2533.0,0.79595]
[1726855728650,0.39475,2533.1,2533.0,0.79595]
[1726855728848,0.39475,2533.2,2533.1,0.39475]
[1726855729650,0.98681,2533.3,2533.0,0.4012]
[1726855729837,0.39475,2533.2,2533.1,0.39475]
[1726855730039,0.39475,2533.1,2533.0,0.79595]
[1726855730250,0.39475,2533.1,2533.0,0.4012]
[1726855730251,1.38163,2533.1,2533.0,0.4012]
[1726855730450,0.98692,2533.0,2532.7,0.3757]
[1726855730643,0.3948,2532.8,2532.7,0.7834]
[1726855730845,0.39479,2532.9,2532.8,0.39479]
[1726855731044,0.3948,2532.8,2532.7,0.7834]
[1726855731247,0.39479,2532.9,2532.8,0.3948]
[1726855731546,0.39479,2532.9,2532.7,1.1782]
[1726855731746,0.3948,2532.8,2532.7,1.1782]
[1726855732045,0.3948,2532.8,2532.7,0.7834]
[1726855732253,0.39478,2532.9,2532.8,0.39479]
[1726855732952,0.39478,2532.9,2532.7,0.7834]
[1726855733245,0.98689,2533.1,2532.7,1.77043]
[1726855733246,0.39475,2533.1,2532.7,1.77043]
[1726855733445,0.4007,2533.2,2532.9,3.2078]
[1726855733646,0.4007,2533.2,2532.9,3.60257]
[1726855733949,0.39476,2533.1,2532.9,3.60257]
[1726855734646,0.39476,2533.0,2532.9,3.60257]
[1726855735044,0.39476,2533.1,2533.0,0.39476]
[1726855735352,2.04945049,2533.5,2533.4,0.3947]
[1726855735555,0.79853,2533.9,2533.4,0.3947]
[1726855735746,0.4039,2533.9,2533.7,3.2078]
[1726855735941,0.4039,2533.9,2533.7,3.60245]
[1726855736255,0.39464,2533.8,2533.7,3.2078]
[1726855736550,0.4039,2533.9,2533.7,3.2078]
[1726855736745,0.39464,2533.8,2533.7,3.2078]
[1726855736945,0.39467,2533.6,2533.3,3.60251]
[1726855737241,0.39471,2533.4,2533.1,4.38385]
[1726855737440,0.39472,2533.3,2533.1,3.9891]
[1726855737639,3.03610049,2533.7,2533.1,3.9891]
[1726855737640,0.39471,2533.4,2533.1,4.38384]
[1726855737844,0.39471,2533.4,2533.1,3.9891]
[1726855738041,0.39471,2533.4,2533.1,4.38385]
[1726855738248,0.39469,2533.5,2533.2,0.39473]
[1726855738454,0.39469,2533.5,2533.3,0.3841]
[1726855738657,0.39468,2533.6,2533.3,0.77881]
[1726855739452,0.39468,2533.6,2533.3,0.3841]
[1726855739653,0.39468,2533.6,2533.3,0.77882]
[1726855739853,0.39469,2533.5,2533.3,0.3841]
[1726855740062,0.39469,2533.5,2533.1,3.9891]
[1726855740251,2.04945049,2533.8,2533.1,3.9891]
[1726855740456,0.39469,2533.5,2533.1,4.38384]
[1726855741255,0.39469,2533.5,2533.1,3.9891]
[1726855741556,0.3947,2533.4,2533.1,3.9891]
[1726855741855,0.386,2533.4,2533.1,3.9891]
[1726855742055,0.386,2533.4,2533.1,4.38385]
[1726855742459,0.386,2533.4,2533.1,3.9891]
[1726855742950,0.7807,2533.4,2533.1,3.9891]
[1726855743459,0.386,2533.4,2533.1,4.38385]
[1726855744052,0.386,2533.4,2533.1,3.9891]
[1726855744263,0.78071,2533.4,2533.1,3.9891]
[1726855744753,0.78071,2533.4,2532.5,6.15098428]
[1726855744754,5.64325049,2533.4,2532.8,3.5816]
[1726855744947,0.39476,2533.1,2532.8,3.9729]
[1726855745147,2.44421049,2533.1,2532.8,3.9729]
[1726855745348,2.04945049,2533.0,2532.8,3.9729]
[1726855745545,2.44421049,2533.1,2532.8,3.9729]
[1726855745954,2.44421049,2533.1,2532.8,4.36769]
[1726855746156,2.04945049,2533.1,2532.8,3.9729]
[1726855746456,2.04945049,2533.3,2532.9,7.738]
[1726855746654,2.04945049,2533.3,2533.1,0.39475]
[1726855747549,2.04945049,2533.3,2533.2,0.39473]
[1726855747745,2.04945049,2533.3,2532.9,7.886]
[1726855747746,2.04945049,2533.3,2533.1,0.39474]
[1726855747954,2.04945049,2533.3,2533.2,0.4032]
[1726855748260,5.65195049,2533.4,2533.2,0.4032]
[1726855748570,3.6025,2533.4,2533.3,0.3915]
[1726855748858,3.6025,2533.4,2533.3,0.7954]
[1726855749258,3.6025,2533.4,2533.1,0.39473]
[1726855749562,2.95643765,2533.4,2533.2,0.3915]
[1726855749864,2.05759893,2533.3,2533.2,0.3915]
[1726855750357,0.39478,2533.0,2532.8,3.2078]
[1726855750564,2.05710061,2533.0,2532.8,3.2078]
[1726855750756,2.45187061,2533.0,2532.8,3.2078]
[1726855750961,0.39478,2532.9,2532.8,3.2078]
[1726855751153,2.45187061,2533.0,2532.8,3.2078]
[1726855751355,4.34278,2532.9,2532.8,3.2078]
[1726855751553,0.3948,2532.8,2532.7,0.3915]
[1726855752168,0.39484,2532.5,2532.4,0.38]
[1726855752367,2.05710061,2532.8,2532.4,0.77]
[1726855752368,2.43780061,2532.7,2532.4,0.77]
[1726855752561,0.39483,2532.6,2532.4,0.77]
[1726855752766,2.43780061,2532.7,2532.4,0.77]
[1726855753064,0.39484,2532.5,2532.4,0.77]
[1726855753264,2.05710061,2532.6,2532.4,0.77]
[1726855753459,2.45193061,2532.6,2532.4,0.77]
[1726855753665,2.05710061,2532.6,2532.4,0.77]
[1726855754370,0.39484,2532.5,2532.4,0.77]
[1726855754670,2.45193061,2532.6,2532.4,0.39]
[1726855754869,2.05710061,2532.5,2532.1,3.2078]
[1726855755061,2.05710061,2532.3,2532.1,3.2078]
[1726855755370,2.05710061,2532.3,2531.3,3.2078]
[1726855755371,0.39501,2531.4,2531.3,3.2078]
[1726855755674,2.05257123,2531.7,2531.3,3.79]
[1726855755968,2.05257123,2531.8,2531.4,3.60281]
[1726855756163,2.44753123,2531.8,2531.5,0.3791]